Workbook

Sheet Таблица CRC (hidden)
A1: CRCfrom_nekto:
A2: Data.c $00,$5E,$0BC,$0E2,$61,$3F,$0DD,$83,$0C2,$9C,$7E,$20,$0A3,$0FD,$1F,$41
A3: Data.c $9D,$0C3,$21,$7F,$0FC,$0A2,$40,$1E,$5F,$01,$0E3,$0BD,$3E,$60,$82,$0DC
A4: Data.c $23,$7D,$9F,$0C1,$42,$1C,$0FE,$0A0,$0E1,$0BF,$5D,$03,$80,$0DE,$3C,$62 | K4: =MyXor(L3,'Таблица CRC'!A390) -> 0
A5: Data.c $0BE,$0E0,$02,$5C,$0DF,$81,$63,$3D,$7C,$22,$0C0,$9E,$1D,$43,$0A1,$0FF
A6: Data.c $46,$18,$0FA,$0A4,$27,$79,$9B,$0C5,$84,$0DA,$38,$66,$0E5,$0BB,$59,$07
A7: Data.c $0DB,$85,$67,$39,$0BA,$0E4,$06,$58,$19,$47,$0A5,$0FB,$78,$26,$0C4,$9A
A8: Data.c $65,$3B,$0D9,$87,$04,$5A,$0B8,$0E6,$0A7,$0F9,$1B,$45,$0C6,$98,$7A,$24
A9: Data.c $0F8,$0A6,$44,$1A,$99,$0C7,$25,$7B,$3A,$64,$86,$0D8,$5B,$05,$0E7,$0B9
A10: Data.c $8C,$0D2,$30,$6E,$0ED,$0B3,$51,$0F,$4E,$10,$0F2,$0AC,$2F,$71,$93,$0CD
A11: Data.c $11,$4F,$0AD,$0F3,$70,$2E,$0CC,$92,$0D3,$8D,$6F,$31,$0B2,$0EC,$0E,$50
A12: Data.c $0AF,$0F1,$13,$4D,$0CE,$90,$72,$2C,$6D,$33,$0D1,$8F,$0C,$52,$0B0,$0EE
A13: Data.c $32,$6C,$8E,$0D0,$53,$0D,$0EF,$0B1,$0F0,$0AE,$4C,$12,$91,$0CF,$2D,$73
A14: Data.c $0CA,$94,$76,$28,$0AB,$0F5,$17,$49,$08,$56,$0B4,$0EA,$69,$37,$0D5,$8B
A15: Data.c $57,$09,$0EB,$0B5,$36,$68,$8A,$0D4,$95,$0CB,$29,$77,$0F4,$0AA,$48,$16
A16: Data.c $0E9,$0B7,$55,$0B,$88,$0D6,$34,$6A,$2B,$75,$97,$0C9,$4A,$14,$0F6,$0A8
A17: Data.c $74,$2A,$0C8,$96,$15,$4B,$0A9,$0F7,$0B6,$0FC,$0A,$54,$0D7,$89,$6B,$35
A19: CRCTable : array [0..255] of byte = (
A20: 0,94,188,226,97,63,221,131,194,156,126,32,163,253,31,65,
A21: 157,195,33,127,252,162,64,30,95,1,227,189,62,96,130,220,
A22: 35,125,159,193,66,28,254,160,225,191,93,3,128,222,60,98,
A23: 190,224,2,92,223,129,99,61,124,34,192,158,29,67,161,255,
A24: 70,24,250,164,39,121,155,197,132,218,56,102,229,187,89,7,
A25: 219,133,103,57,186,228,6,88,25,71,165,251,120,38,196,154,
A26: 101,59,217,135,4,90,184,230,167,249,27,69,198,152,122,36,
A27: 248,166,68,26,153,199,37,123,58,100,134,216,91,5,231,185,
A28: 140,210,48,110,237,179,81,15,78,16,242,172,47,113,147,205,
A29: 17,79,173,243,112,46,204,146,211,141,111,49,178,236,14,80,
A30: 175,241,19,77,206,144,114,44,109,51,209,143,12,82,176,238,
A31: 50,108,142,208,83,13,239,177,240,174,76,18,145,207,45,115,
A32: 202,148,118,40,171,245,23,73,8,86,180,234,105,55,213,139,
A33: 87,9,235,181,54,104,138,212,149,203,41,119,244,170,72,22,
A34: 233,183,85,11,136,214,52,106,43,117,151,201,74,20,246,168,
A35: 116,42,200,150,21,75,169,247,182,232,10,84,215,137,107,53);
A36: Таблица CRC8 от nekto
A37: 00h,5Eh,0BCh,0E2h,61h,3Fh,0DDh,83h,0C2h,9Ch,7Eh,20h,0A3h,0FDh,1Fh,41h,9Dh,0C3h,21h,7Fh,0FCh,0A2h,40h,1Eh,5Fh,01h,0E3h,0BDh,3Eh,60h,82h,0DCh,23h,7Dh,9Fh,0C1h,42h,1Ch,0FEh,0A0h,0E1h,0BFh,5Dh,03h,80h,0DEh,3Ch,62h,0BEh,0E0h,02h,5Ch,0DFh,81h,63h,3Dh,7Ch,22h,0C0h,9Eh,1Dh,43h,0A1h,0FFh,46h,18h,0FAh,0A4h,27h,79h,9Bh,0C5h,84h,0DAh,38h,66h,0E5h,0BBh,59h,07h,0DBh,85h,67h,39h,0BAh,0E4h,06h,58h,19h,47h,0A5h,0FBh,78h,26h,0C4h,9Ah,65h,3Bh,0D9h,87h,04h,5Ah,0B8h,0E6h,0A7h,0F9h,1Bh,45h,0C6h,98h,7Ah,24h,0F8h,0A6h,44h,1Ah,99h,0C7h,25h,7Bh,3Ah,64h,86h,0D8h,5Bh,05h,0E7h,0B9h,8Ch,0D2h,30h,6Eh,0EDh,0B3h,51h,0Fh,4Eh,10h,0F2h,0ACh,2Fh,71h,93h,0CDh,11h,4Fh,0ADh,0F3h,70h,2Eh,0CCh,92h,0D3h,8Dh,6Fh,31h,0B2h,0ECh,0Eh,50h,0AFh,0F1h,13h,4Dh,0CEh,90h,72h,2Ch,6Dh,33h,0D1h,8Fh,0Ch,52h,0B0h,0EEh,32h,6Ch,8Eh,0D0h,53h,0Dh,0EFh,0B1h,0F0h,0AEh,4Ch,12h,91h,0CFh,2Dh,73h,0CAh,94h,76h,28h,0ABh,0F5h,17h,49h,08h,56h,0B4h,0EAh,69h,37h,0D5h,8Bh,57h,09h,0EBh,0B5h,36h,68h,8Ah,0D4h,95h,0CBh,29h,77h,0F4h,0AAh,48h,16h,0E9h,0B7h,55h,0Bh,88h,0D6h,34h,6Ah,2Bh,75h,97h,0C9h,4Ah,14h,0F6h,0A8h,74h,2Ah,0C8h,96h,15h,4Bh,0A9h,0F7h,0B6h,0FCh,0Ah,54h,0D7h,89h,6Bh,35h,00h
A38: 00 5E BC E2 61 3F DD 83 C2 9C 7E 20 A3 FD 1F 41 9D C3 21 7F FC A2 40 1E 5F 1 E3 BD 3E 60 82 DC 23 7D 9F C1 42 1C FE A0 E1 BF 5D 3 80 DE 3C 62 BE E0 2 5C DF 81 63 3D 7C 22 C0 9E 1D 43 A1 FF 46 18 FA A4 27 79 9B C5 84 DA 38 66 E5 BB 59 7 DB 85 67 39 BA E4 6 58 19 47 A5 FB 78 26 C4 9A 65 3B D9 87 4 5A B8 E6 A7 F9 1B 45 C6 98 7A 24 F8 A6 44 1A 99 C7 25 7B 3A 64 86 D8 5B 5 E7 B9 8C D2 30 6E ED B3 51 F 4E 10 F2 AC 2F 71 93 CD 11 4F AD F3 70 2E CC 92 D3 8D 6F 31 B2 EC E 50 AF F1 13 4D CE 90 72 2C 6D 33 D1 8F C 52 B0 EE 32 6C 8E D0 53 D EF B1 F0 AE 4C 12 91 CF 2D 73 CA 94 76 28 AB F5 17 49 8 56 B4 EA 69 37 D5 8B 57 9 EB B5 36 68 8A D4 95 CB 29 77 F4 AA 48 16 E9 B7 55 B 88 D6 34 6A 2B 75 97 C9 4A 14 F6 A8 74 2A C8 96 15 4B A9 F7 B6 FC A 54 D7 89 6B 35 0h
A39: 0 | B39: =A39+1 -> 1 | C39: =B39+1 -> 2 | D39: 3 | E39: 4 | F39: 5 | G39: 6 | H39: 7 | I39: 8 | J39: 9 | K39: 10 | L39: 11 | M39: 12 | N39: 13 | O39: 14 | P39: 15 | Q39: 16 | R39: 17 | S39: 18 | T39: 19 | U39: 20 | V39: 21 | W39: 22 | X39: 23 | Y39: 24 | Z39: 25 | AA39: 26 | AB39: 27 | AC39: 28 | AD39: 29 | AE39: 30 | AF39: 31 | AG39: 32 | AH39: 33 | AI39: 34 | AJ39: 35 | AK39: 36 | AL39: 37 | AM39: 38 | AN39: 39 | AO39: 40 | AP39: 41 | AQ39: 42 | AR39: 43 | AS39: 44 | AT39: 45 | AU39: 46 | AV39: 47 | AW39: 48 | AX39: 49 | AY39: 50 | AZ39: 51 | BA39: 52 | BB39: 53 | BC39: 54 | BD39: 55 | BE39: 56 | BF39: 57 | BG39: 58 | BH39: 59 | BI39: 60 | BJ39: 61 | BK39: 62 | BL39: 63 | BM39: 64 | BN39: 65 | BO39: =BN39+1 -> 66 | BP39: 67 | BQ39: 68 | BR39: 69 | BS39: 70 | BT39: 71 | BU39: 72 | BV39: 73 | BW39: 74 | BX39: 75 | BY39: 76 | BZ39: 77 | CA39: 78 | CB39: 79 | CC39: 80 | CD39: 81 | CE39: 82 | CF39: 83 | CG39: 84 | CH39: 85 | CI39: 86 | CJ39: 87 | CK39: 88 | CL39: 89 | CM39: 90 | CN39: 91 | CO39: 92 | CP39: 93 | CQ39: 94 | CR39: 95 | CS39: 96 | CT39: 97 | CU39: 98 | CV39: 99 | CW39: 100 | CX39: 101 | CY39: 102 | CZ39: 103 | DA39: 104 | DB39: 105 | DC39: 106 | DD39: 107 | DE39: 108 | DF39: 109 | DG39: 110 | DH39: 111 | DI39: 112 | DJ39: 113 | DK39: 114 | DL39: 115 | DM39: 116 | DN39: 117 | DO39: 118 | DP39: 119 | DQ39: 120 | DR39: 121 | DS39: 122 | DT39: 123 | DU39: 124 | DV39: 125 | DW39: 126 | DX39: 127 | DY39: 128 | DZ39: 129 | EA39: =DZ39+1 -> 130 | EB39: 131 | EC39: 132 | ED39: 133 | EE39: 134 | EF39: 135 | EG39: 136 | EH39: 137 | EI39: 138 | EJ39: 139 | EK39: 140 | EL39: 141 | EM39: 142 | EN39: 143 | EO39: 144 | EP39: 145 | EQ39: 146 | ER39: 147 | ES39: 148 | ET39: 149 | EU39: 150 | EV39: 151 | EW39: 152 | EX39: 153 | EY39: 154 | EZ39: 155 | FA39: 156 | FB39: 157 | FC39: 158 | FD39: 159 | FE39: 160 | FF39: 161 | FG39: 162 | FH39: 163 | FI39: 164 | FJ39: 165 | FK39: 166 | FL39: 167 | FM39: 168 | FN39: 169 | FO39: 170 | FP39: 171 | FQ39: 172 | FR39: 173 | FS39: 174 | FT39: 175 | FU39: 176 | FV39: 177 | FW39: 178 | FX39: 179 | FY39: 180 | FZ39: 181 | GA39: 182 | GB39: 183 | GC39: 184 | GD39: 185 | GE39: 186 | GF39: 187 | GG39: 188 | GH39: 189 | GI39: 190 | GJ39: 191 | GK39: 192 | GL39: 193 | GM39: =GL39+1 -> 194 | GN39: 195 | GO39: 196 | GP39: 197 | GQ39: 198 | GR39: 199 | GS39: 200 | GT39: 201 | GU39: 202 | GV39: 203 | GW39: 204 | GX39: 205 | GY39: 206 | GZ39: 207 | HA39: 208 | HB39: 209 | HC39: 210 | HD39: 211 | HE39: 212 | HF39: 213 | HG39: 214 | HH39: 215 | HI39: 216 | HJ39: 217 | HK39: 218 | HL39: 219 | HM39: 220 | HN39: 221 | HO39: 222 | HP39: 223 | HQ39: 224 | HR39: 225 | HS39: 226 | HT39: 227 | HU39: 228 | HV39: 229 | HW39: 230 | HX39: 231 | HY39: 232 | HZ39: 233 | IA39: 234 | IB39: 235 | IC39: 236 | ID39: 237 | IE39: 238 | IF39: 239 | IG39: 240 | IH39: 241 | II39: 242 | IJ39: 243 | IK39: 244 | IL39: 245 | IM39: 246 | IN39: 247 | IO39: 248 | IP39: 249 | IQ39: 250 | IR39: 251 | IS39: 252 | IT39: 253 | IU39: 254 | IV39: 255
A40: 0 | B40: 5E | C40: BC | D40: E2 | E40: 61 | F40: 3F | G40: DD | H40: 83 | I40: C2 | J40: 9C | K40: 7E | L40: 20 | M40: A3 | N40: FD | O40: 1F | P40: 41 | Q40: 9D | R40: C3 | S40: 21 | T40: 7F | U40: FC | V40: A2 | W40: 40 | X40: 1E | Y40: 5F | Z40: 1 | AA40: E3 | AB40: BD | AC40: 3E | AD40: 60 | AE40: 82 | AF40: DC | AG40: 23 | AH40: 7D | AI40: 9F | AJ40: C1 | AK40: 42 | AL40: 1C | AM40: FE | AN40: A0 | AO40: E1 | AP40: BF | AQ40: 5D | AR40: 3 | AS40: 80 | AT40: DE | AU40: 3C | AV40: 62 | AW40: BE | AX40: E0 | AY40: 2 | AZ40: 5C | BA40: DF | BB40: 81 | BC40: 63 | BD40: 3D | BE40: 7C | BF40: 22 | BG40: C0 | BH40: 9E | BI40: 1D | BJ40: 43 | BK40: A1 | BL40: FF | BM40: 46 | BN40: 18 | BO40: FA | BP40: A4 | BQ40: 27 | BR40: 79 | BS40: 9B | BT40: C5 | BU40: 84 | BV40: DA | BW40: 38 | BX40: 66 | BY40: E5 | BZ40: BB | CA40: 59 | CB40: 7 | CC40: DB | CD40: 85 | CE40: 67 | CF40: 39 | CG40: BA | CH40: E4 | CI40: 6 | CJ40: 58 | CK40: 19 | CL40: 47 | CM40: A5 | CN40: FB | CO40: 78 | CP40: 26 | CQ40: C4 | CR40: 9A | CS40: 65 | CT40: 3B | CU40: D9 | CV40: 87 | CW40: 4 | CX40: 5A | CY40: B8 | CZ40: E6 | DA40: A7 | DB40: F9 | DC40: 1B | DD40: 45 | DE40: C6 | DF40: 98 | DG40: 7A | DH40: 24 | DI40: F8 | DJ40: A6 | DK40: 44 | DL40: 1A | DM40: 99 | DN40: C7 | DO40: 25 | DP40: 7B | DQ40: 3A | DR40: 64 | DS40: 86 | DT40: D8 | DU40: 5B | DV40: 5 | DW40: E7 | DX40: B9 | DY40: 8C | DZ40: D2 | EA40: 30 | EB40: 6E | EC40: ED | ED40: B3 | EE40: 51 | EF40: F | EG40: 4E | EH40: 10 | EI40: F2 | EJ40: AC | EK40: 2F | EL40: 71 | EM40: 93 | EN40: CD | EO40: 11 | EP40: 4F | EQ40: AD | ER40: F3 | ES40: 70 | ET40: 2E | EU40: CC | EV40: 92 | EW40: D3 | EX40: 8D | EY40: 6F | EZ40: 31 | FA40: B2 | FB40: EC | FC40: E | FD40: 50 | FE40: AF | FF40: F1 | FG40: 13 | FH40: 4D | FI40: CE | FJ40: 90 | FK40: 72 | FL40: 2C | FM40: 6D | FN40: 33 | FO40: D1 | FP40: 8F | FQ40: C | FR40: 52 | FS40: B0 | FT40: EE | FU40: 32 | FV40: 6C | FW40: 8E | FX40: D0 | FY40: 53 | FZ40: D | GA40: EF | GB40: B1 | GC40: F0 | GD40: AE | GE40: 4C | GF40: 12 | GG40: 91 | GH40: CF | GI40: 2D | GJ40: 73 | GK40: CA | GL40: 94 | GM40: 76 | GN40: 28 | GO40: AB | GP40: F5 | GQ40: 17 | GR40: 49 | GS40: 8 | GT40: 56 | GU40: B4 | GV40: EA | GW40: 69 | GX40: 37 | GY40: D5 | GZ40: 8B | HA40: 57 | HB40: 9 | HC40: EB | HD40: B5 | HE40: 36 | HF40: 68 | HG40: 8A | HH40: D4 | HI40: 95 | HJ40: CB | HK40: 29 | HL40: 77 | HM40: F4 | HN40: AA | HO40: 48 | HP40: 16 | HQ40: E9 | HR40: B7 | HS40: 55 | HT40: B | HU40: 88 | HV40: D6 | HW40: 34 | HX40: 6A | HY40: 2B | HZ40: 75 | IA40: 97 | IB40: C9 | IC40: 4A | ID40: 14 | IE40: F6 | IF40: A8 | IG40: 74 | IH40: 2A | II40: C8 | IJ40: 96 | IK40: 15 | IL40: 4B | IM40: A9 | IN40: F7 | IO40: B6 | IP40: FC | IQ40: A | IR40: 54 | IS40: D7 | IT40: 89 | IU40: 6B | IV40: 35
A41: =HEX2DEC(A40) -> 0 | B41: =HEX2DEC(B40) -> 94 | C41: 188 | D41: 226 | E41: 97 | F41: 63 | G41: 221 | H41: 131 | I41: 194 | J41: 156 | K41: 126 | L41: 32 | M41: 163 | N41: 253 | O41: 31 | P41: 65 | Q41: 157 | R41: 195 | S41: 33 | T41: 127 | U41: 252 | V41: 162 | W41: 64 | X41: 30 | Y41: 95 | Z41: 1 | AA41: 227 | AB41: 189 | AC41: 62 | AD41: 96 | AE41: 130 | AF41: 220 | AG41: 35 | AH41: 125 | AI41: 159 | AJ41: 193 | AK41: 66 | AL41: 28 | AM41: 254 | AN41: 160 | AO41: 225 | AP41: 191 | AQ41: 93 | AR41: 3 | AS41: 128 | AT41: 222 | AU41: 60 | AV41: 98 | AW41: 190 | AX41: 224 | AY41: 2 | AZ41: 92 | BA41: 223 | BB41: 129 | BC41: 99 | BD41: 61 | BE41: 124 | BF41: 34 | BG41: 192 | BH41: 158 | BI41: 29 | BJ41: 67 | BK41: 161 | BL41: 255 | BM41: 70 | BN41: =HEX2DEC(BN40) -> 24 | BO41: 250 | BP41: 164 | BQ41: 39 | BR41: 121 | BS41: 155 | BT41: 197 | BU41: 132 | BV41: 218 | BW41: 56 | BX41: 102 | BY41: 229 | BZ41: 187 | CA41: 89 | CB41: 7 | CC41: 219 | CD41: 133 | CE41: 103 | CF41: 57 | CG41: 186 | CH41: 228 | CI41: 6 | CJ41: 88 | CK41: 25 | CL41: 71 | CM41: 165 | CN41: 251 | CO41: 120 | CP41: 38 | CQ41: 196 | CR41: 154 | CS41: 101 | CT41: 59 | CU41: 217 | CV41: 135 | CW41: 4 | CX41: 90 | CY41: 184 | CZ41: 230 | DA41: 167 | DB41: 249 | DC41: 27 | DD41: 69 | DE41: 198 | DF41: 152 | DG41: 122 | DH41: 36 | DI41: 248 | DJ41: 166 | DK41: 68 | DL41: 26 | DM41: 153 | DN41: 199 | DO41: 37 | DP41: 123 | DQ41: 58 | DR41: 100 | DS41: 134 | DT41: 216 | DU41: 91 | DV41: 5 | DW41: 231 | DX41: 185 | DY41: 140 | DZ41: =HEX2DEC(DZ40) -> 210 | EA41: 48 | EB41: 110 | EC41: 237 | ED41: 179 | EE41: 81 | EF41: 15 | EG41: 78 | EH41: 16 | EI41: 242 | EJ41: 172 | EK41: 47 | EL41: 113 | EM41: 147 | EN41: 205 | EO41: 17 | EP41: 79 | EQ41: 173 | ER41: 243 | ES41: 112 | ET41: 46 | EU41: 204 | EV41: 146 | EW41: 211 | EX41: 141 | EY41: 111 | EZ41: 49 | FA41: 178 | FB41: 236 | FC41: 14 | FD41: 80 | FE41: 175 | FF41: 241 | FG41: 19 | FH41: 77 | FI41: 206 | FJ41: 144 | FK41: 114 | FL41: 44 | FM41: 109 | FN41: 51 | FO41: 209 | FP41: 143 | FQ41: 12 | FR41: 82 | FS41: 176 | FT41: 238 | FU41: 50 | FV41: 108 | FW41: 142 | FX41: 208 | FY41: 83 | FZ41: 13 | GA41: 239 | GB41: 177 | GC41: 240 | GD41: 174 | GE41: 76 | GF41: 18 | GG41: 145 | GH41: 207 | GI41: 45 | GJ41: 115 | GK41: 202 | GL41: =HEX2DEC(GL40) -> 148 | GM41: 118 | GN41: 40 | GO41: 171 | GP41: 245 | GQ41: 23 | GR41: 73 | GS41: 8 | GT41: 86 | GU41: 180 | GV41: 234 | GW41: 105 | GX41: 55 | GY41: 213 | GZ41: 139 | HA41: 87 | HB41: 9 | HC41: 235 | HD41: 181 | HE41: 54 | HF41: 104 | HG41: 138 | HH41: 212 | HI41: 149 | HJ41: 203 | HK41: 41 | HL41: 119 | HM41: 244 | HN41: 170 | HO41: 72 | HP41: 22 | HQ41: 233 | HR41: 183 | HS41: 85 | HT41: 11 | HU41: 136 | HV41: 214 | HW41: 52 | HX41: 106 | HY41: 43 | HZ41: 117 | IA41: 151 | IB41: 201 | IC41: 74 | ID41: 20 | IE41: 246 | IF41: 168 | IG41: 116 | IH41: 42 | II41: 200 | IJ41: 150 | IK41: 21 | IL41: 75 | IM41: 169 | IN41: 247 | IO41: 182 | IP41: 252 | IQ41: 10 | IR41: 84 | IS41: 215 | IT41: 137 | IU41: 107 | IV41: 53
A43: 0 | B43: 0 | C43: =HEX2DEC(B43) -> 0
A44: =A43+1 -> 1 | B44: 5E | C44: 94
A45: 2 | B45: BC | C45: 188
A46: 3 | B46: E2 | C46: 226
A47: 4 | B47: 61 | C47: 97
A48: 5 | B48: 3F | C48: 63
A49: 6 | B49: DD | C49: 221
A50: 7 | B50: 83 | C50: 131
A51: 8 | B51: C2 | C51: 194
A52: 9 | B52: 9C | C52: 156
A53: 10 | B53: 7E | C53: 126
A54: 11 | B54: 20 | C54: 32
A55: 12 | B55: A3 | C55: 163
A56: 13 | B56: FD | C56: 253
A57: 14 | B57: 1F | C57: 31
A58: 15 | B58: 41 | C58: 65
A59: 16 | B59: 9D | C59: 157
A60: 17 | B60: C3 | C60: 195
A61: 18 | B61: 21 | C61: 33
A62: 19 | B62: 7F | C62: 127
A63: 20 | B63: FC | C63: 252
A64: 21 | B64: A2 | C64: 162
A65: 22 | B65: 40 | C65: 64
A66: 23 | B66: 1E | C66: 30
A67: 24 | B67: 5F | C67: 95
A68: 25 | B68: 1 | C68: 1
A69: 26 | B69: E3 | C69: 227
A70: 27 | B70: BD | C70: 189
A71: 28 | B71: 3E | C71: 62
A72: 29 | B72: 60 | C72: 96
A73: 30 | B73: 82 | C73: 130
A74: 31 | B74: DC | C74: 220
A75: 32 | B75: 23 | C75: 35
A76: 33 | B76: 7D | C76: 125
A77: 34 | B77: 9F | C77: 159
A78: 35 | B78: C1 | C78: 193
A79: 36 | B79: 42 | C79: 66
A80: 37 | B80: 1C | C80: 28
A81: 38 | B81: FE | C81: 254
A82: 39 | B82: A0 | C82: 160
A83: 40 | B83: E1 | C83: 225
A84: 41 | B84: BF | C84: 191
A85: 42 | B85: 5D | C85: 93
A86: 43 | B86: 3 | C86: 3
A87: 44 | B87: 80 | C87: 128
A88: 45 | B88: DE | C88: 222
A89: 46 | B89: 3C | C89: 60
A90: 47 | B90: 62 | C90: 98
A91: 48 | B91: BE | C91: 190
A92: 49 | B92: E0 | C92: 224
A93: 50 | B93: 2 | C93: 2
A94: 51 | B94: 5C | C94: 92
A95: 52 | B95: DF | C95: 223
A96: 53 | B96: 81 | C96: 129
A97: 54 | B97: 63 | C97: 99
A98: 55 | B98: 3D | C98: 61
A99: 56 | B99: 7C | C99: 124
A100: 57 | B100: 22 | C100: 34
A101: 58 | B101: C0 | C101: 192
A102: 59 | B102: 9E | C102: 158
A103: 60 | B103: 1D | C103: 29
A104: 61 | B104: 43 | C104: 67
A105: 62 | B105: A1 | C105: 161
A106: 63 | B106: FF | C106: 255
A107: 64 | B107: 46 | C107: =HEX2DEC(B107) -> 70
A108: =A107+1 -> 65 | B108: 18 | C108: 24
A109: 66 | B109: FA | C109: 250
A110: 67 | B110: A4 | C110: 164
A111: 68 | B111: 27 | C111: 39
A112: 69 | B112: 79 | C112: 121
A113: 70 | B113: 9B | C113: 155
A114: 71 | B114: C5 | C114: 197
A115: 72 | B115: 84 | C115: 132
A116: 73 | B116: DA | C116: 218
A117: 74 | B117: 38 | C117: 56
A118: 75 | B118: 66 | C118: 102
A119: 76 | B119: E5 | C119: 229
A120: 77 | B120: BB | C120: 187
A121: 78 | B121: 59 | C121: 89
A122: 79 | B122: 7 | C122: 7
A123: 80 | B123: DB | C123: 219
A124: 81 | B124: 85 | C124: 133
A125: 82 | B125: 67 | C125: 103
A126: 83 | B126: 39 | C126: 57
A127: 84 | B127: BA | C127: 186
A128: 85 | B128: E4 | C128: 228
A129: 86 | B129: 6 | C129: 6
A130: 87 | B130: 58 | C130: 88
A131: 88 | B131: 19 | C131: 25
A132: 89 | B132: 47 | C132: 71
A133: 90 | B133: A5 | C133: 165
A134: 91 | B134: FB | C134: 251
A135: 92 | B135: 78 | C135: 120
A136: 93 | B136: 26 | C136: 38
A137: 94 | B137: C4 | C137: 196
A138: 95 | B138: 9A | C138: 154
A139: 96 | B139: 65 | C139: 101
A140: 97 | B140: 3B | C140: 59
A141: 98 | B141: D9 | C141: 217
A142: 99 | B142: 87 | C142: 135
A143: 100 | B143: 4 | C143: 4
A144: 101 | B144: 5A | C144: 90
A145: 102 | B145: B8 | C145: 184
A146: 103 | B146: E6 | C146: 230
A147: 104 | B147: A7 | C147: 167
A148: 105 | B148: F9 | C148: 249
A149: 106 | B149: 1B | C149: 27
A150: 107 | B150: 45 | C150: 69
A151: 108 | B151: C6 | C151: 198
A152: 109 | B152: 98 | C152: 152
A153: 110 | B153: 7A | C153: 122
A154: 111 | B154: 24 | C154: 36
A155: 112 | B155: F8 | C155: 248
A156: 113 | B156: A6 | C156: 166
A157: 114 | B157: 44 | C157: 68
A158: 115 | B158: 1A | C158: 26
A159: 116 | B159: 99 | C159: 153
A160: 117 | B160: C7 | C160: 199
A161: 118 | B161: 25 | C161: 37
A162: 119 | B162: 7B | C162: 123
A163: 120 | B163: 3A | C163: 58
A164: 121 | B164: 64 | C164: 100
A165: 122 | B165: 86 | C165: 134
A166: 123 | B166: D8 | C166: 216
A167: 124 | B167: 5B | C167: 91
A168: 125 | B168: 5 | C168: 5
A169: 126 | B169: E7 | C169: 231
A170: 127 | B170: B9 | C170: 185
A171: 128 | B171: 8C | C171: =HEX2DEC(B171) -> 140
A172: =A171+1 -> 129 | B172: D2 | C172: 210
A173: 130 | B173: 30 | C173: 48
A174: 131 | B174: 6E | C174: 110
A175: 132 | B175: ED | C175: 237
A176: 133 | B176: B3 | C176: 179
A177: 134 | B177: 51 | C177: 81
A178: 135 | B178: F | C178: 15
A179: 136 | B179: 4E | C179: 78
A180: 137 | B180: 10 | C180: 16
A181: 138 | B181: F2 | C181: 242
A182: 139 | B182: AC | C182: 172
A183: 140 | B183: 2F | C183: 47
A184: 141 | B184: 71 | C184: 113
A185: 142 | B185: 93 | C185: 147
A186: 143 | B186: CD | C186: 205
A187: 144 | B187: 11 | C187: 17
A188: 145 | B188: 4F | C188: 79
A189: 146 | B189: AD | C189: 173
A190: 147 | B190: F3 | C190: 243
A191: 148 | B191: 70 | C191: 112
A192: 149 | B192: 2E | C192: 46
A193: 150 | B193: CC | C193: 204
A194: 151 | B194: 92 | C194: 146
A195: 152 | B195: D3 | C195: 211
A196: 153 | B196: 8D | C196: 141
A197: 154 | B197: 6F | C197: 111
A198: 155 | B198: 31 | C198: 49
A199: 156 | B199: B2 | C199: 178
A200: 157 | B200: EC | C200: 236
A201: 158 | B201: E | C201: 14
A202: 159 | B202: 50 | C202: 80
... 96 more rows

Sheet команды управления
K2: 109
A3: Широковещательная команда управление разделами включить (номер раздела 6 байт, вкл откл 9 байт) | C3: 0 | D3: 9 | E3: 0 | F3: 43 | G3: 16 | H3: 5 | I3: 0 | J3: 0 | K3: 110
B4: Расчет CRC8 | C4: =MyXor(C3,0) -> 0 | D4: =MyXor(D3,VLOOKUP(C4,'Таблица CRC'!$A$43:$C$298,3,FALSE)) -> 9 | E4: =MyXor(E3,VLOOKUP(D4,'Таблица CRC'!$A$43:$C$298,3,FALSE)) -> 156 | F4: =MyXor(F3,VLOOKUP(E4,'Таблица CRC'!$A$43:$C$298,3,FALSE)) -> 153 | G4: =MyXor(G3,VLOOKUP(F4,'Таблица CRC'!$A$43:$C$298,3,FALSE)) -> 157 | H4: =MyXor(H3,VLOOKUP(G4,'Таблица CRC'!$A$43:$C$298,3,FALSE)) -> 233 | I4: =MyXor(I3,VLOOKUP(H4,'Таблица CRC'!$A$43:$C$298,3,FALSE)) -> 117 | J4: =MyXor(J3,VLOOKUP(I4,'Таблица CRC'!$A$43:$C$298,3,FALSE)) -> 199 | K4: =MyXor(K3,VLOOKUP(J4,'Таблица CRC'!$A$43:$C$298,3,FALSE)) -> 39 | L4: =MyXor(L3,VLOOKUP(K4,'Таблица CRC'!$A$43:$C$298,3,FALSE)) -> 160
B5: =CONCATENATE(C5," ",D5," ",E5," ",F5," ",G5," ",H5," ",I5," ",J5," ",K5," ",L5," ",M5," ",N5) -> 00 09 00 2B 10 05 00 00 6E A0 | C5: =DEC2HEX(C3,2) -> 00 | D5: =DEC2HEX(D3,2) -> 09 | E5: 00 | F5: 2B | G5: 10 | H5: 05 | I5: 00 | J5: 00 | K5: 6E | L5: =DEC2HEX(L4,2) -> A0
A7: Широковещательная команда управление разделами индикации (номер раздела 6 байт, 9 байт доп.индикация ) | C7: 0 | D7: 9 | E7: 1 | F7: 43 | G7: 16 | H7: 44 | I7: 0 | J7: 16 | K7: 23
B8: Расчет CRC8 | C8: =MyXor(C7,0) -> 0 | D8: =MyXor(D7,VLOOKUP(C8,'Таблица CRC'!$A$43:$C$298,3,FALSE)) -> 9 | E8: =MyXor(E7,VLOOKUP(D8,'Таблица CRC'!$A$43:$C$298,3,FALSE)) -> 157 | F8: =MyXor(F7,VLOOKUP(E8,'Таблица CRC'!$A$43:$C$298,3,FALSE)) -> 199 | G8: =MyXor(G7,VLOOKUP(F8,'Таблица CRC'!$A$43:$C$298,3,FALSE)) -> 89 | H8: =MyXor(H7,VLOOKUP(G8,'Таблица CRC'!$A$43:$C$298,3,FALSE)) -> 107 | I8: =MyXor(I7,VLOOKUP(H8,'Таблица CRC'!$A$43:$C$298,3,FALSE)) -> 69 | J8: =MyXor(J7,VLOOKUP(I8,'Таблица CRC'!$A$43:$C$298,3,FALSE)) -> 105 | K8: =MyXor(K7,VLOOKUP(J8,'Таблица CRC'!$A$43:$C$298,3,FALSE)) -> 238 | L8: =MyXor(L7,VLOOKUP(K8,'Таблица CRC'!$A$43:$C$298,3,FALSE)) -> 246
B9: =CONCATENATE(C9," ",D9," ",E9," ",F9," ",G9," ",H9," ",I9," ",J9," ",K9," ",L9," ",M9," ",N9) -> 00 09 01 2B 10 2C 00 10 17 F6 | C9: =DEC2HEX(C7,2) -> 00 | D9: =DEC2HEX(D7,2) -> 09 | E9: 01 | F9: 2B | G9: 10 | H9: 2C | I9: 00 | J9: 10 | K9: 17 | L9: =DEC2HEX(L8,2) -> F6
A11: ВКЛЮЧИТЬ ИНДИКАТОР ( ЗАВИСИТ ОТ ПРОГРАМИРОВАНИЯ БКИ или БИ)
A12: включить выключить диод на БИ БКИ (номер диода указывается в 6 байте, 8 байт=0 вкл, (8байт дополнит индикация) | C12: 100 | D12: 11 | E12: 83 | F12: 43 | G12: 13 | H12: 54 | I12: 0 | J12: 0 | K12: 0 | L12: 0 | M12: 0
B13: Расчет CRC8 | C13: =MyXor(C12,0) -> 100 | D13: =MyXor(D12,VLOOKUP(C13,'Таблица CRC'!$A$43:$C$298,3,FALSE)) -> 15 | E13: =MyXor(E12,VLOOKUP(D13,'Таблица CRC'!$A$43:$C$298,3,FALSE)) -> 18 | F13: =MyXor(F12,VLOOKUP(E13,'Таблица CRC'!$A$43:$C$298,3,FALSE)) -> 10 | G13: =MyXor(G12,VLOOKUP(F13,'Таблица CRC'!$A$43:$C$298,3,FALSE)) -> 115 | H13: =MyXor(H12,VLOOKUP(G13,'Таблица CRC'!$A$43:$C$298,3,FALSE)) -> 44 | I13: =MyXor(I12,VLOOKUP(H13,'Таблица CRC'!$A$43:$C$298,3,FALSE)) -> 128 | J13: =MyXor(J12,VLOOKUP(I13,'Таблица CRC'!$A$43:$C$298,3,FALSE)) -> 140 | K13: =MyXor(K12,VLOOKUP(J13,'Таблица CRC'!$A$43:$C$298,3,FALSE)) -> 47 | L13: =MyXor(L12,VLOOKUP(K13,'Таблица CRC'!$A$43:$C$298,3,FALSE)) -> 98 | M13: =MyXor(M12,VLOOKUP(L13,'Таблица CRC'!$A$43:$C$298,3,FALSE)) -> 217 | N13: =MyXor(N12,VLOOKUP(M13,'Таблица CRC'!$A$43:$C$298,3,FALSE)) -> 203
B14: =CONCATENATE(C14," ",D14," ",E14," ",F14," ",G14," ",H14," ",I14," ",J14," ",K14," ",L14," ",M14," ",N14) -> 64 0B 53 2B 0D 36 00 00 00 00 00 CB | C14: =DEC2HEX(C12,2) -> 64 | D14: =DEC2HEX(D12,2) -> 0B | E14: 53 | F14: 2B | G14: 0D | H14: 36 | I14: 00 | J14: 00 | K14: 00 | L14: 00 | M14: 00 | N14: =DEC2HEX(N13,2) -> CB
A16: ВКЛЮЧИТЬ ИНДИКАТОР ОБЫЧНЫЙ РЕЖИМ ( ЗАВИСИТ ОТ ПРОГРАМИРОВАНИЯ БКИ или БИ)
A17: Вкл выкл диод 9 байт 109 вкл, любое другое выкл номер диода 6 байт | C17: 100 | D17: 9 | E17: 0 | F17: 43 | G17: 16 | H17: 60 | I17: 0 | J17: 0 | K17: 109
B18: Расчет CRC8 | C18: =MyXor(C17,0) -> 100 | D18: =MyXor(D17,VLOOKUP(C18,'Таблица CRC'!$A$43:$C$298,3,FALSE)) -> 13 | E18: =MyXor(E17,VLOOKUP(D18,'Таблица CRC'!$A$43:$C$298,3,FALSE)) -> 253 | F18: =MyXor(F17,VLOOKUP(E18,'Таблица CRC'!$A$43:$C$298,3,FALSE)) -> 162 | G18: =MyXor(G17,VLOOKUP(F18,'Таблица CRC'!$A$43:$C$298,3,FALSE)) -> 3 | H18: =MyXor(H17,VLOOKUP(G18,'Таблица CRC'!$A$43:$C$298,3,FALSE)) -> 222 | I18: =MyXor(I17,VLOOKUP(H18,'Таблица CRC'!$A$43:$C$298,3,FALSE)) -> 72 | J18: =MyXor(J17,VLOOKUP(I18,'Таблица CRC'!$A$43:$C$298,3,FALSE)) -> 132 | K18: =MyXor(K17,VLOOKUP(J18,'Таблица CRC'!$A$43:$C$298,3,FALSE)) -> 128 | L18: =MyXor(L17,VLOOKUP(K18,'Таблица CRC'!$A$43:$C$298,3,FALSE)) -> 140
B19: =CONCATENATE(C19," ",D19," ",E19," ",F19," ",G19," ",H19," ",I19," ",J19," ",K19," ",L19," ",M19," ",N19) -> 64 09 00 2B 10 3C 00 00 6D 8C | C19: =DEC2HEX(C17,2) -> 64 | D19: =DEC2HEX(D17,2) -> 09 | E19: 00 | F19: 2B | G19: 10 | H19: 3C | I19: 00 | J19: 00 | K19: =DEC2HEX(K17,2) -> 6D | L19: =DEC2HEX(L18,2) -> 8C
A21: ВКЛЮЧИТЬ ИНДИКАТОР РАСШИРЕННЫЙ РЕЖИМ ( ЗАВИСИТ ОТ ПРОГРАМИРОВАНИЯ БКИ или БИ)
A22: диод (шестой байт № диода)18 байт, (зависит от программирования БКИ) 2,3,4,5, 23 моргает зел, 24 горит красн, | C22: 100 | D22: 19 | E22: 0 | F22: 43 | G22: 17 | H22: 1 | I22: 1 | J22: 0 | K22: 17 | L22: 5 | M22: 239 | N22: 16 | O22: 16 | P22: 254 | Q22: 254 | R22: 254 | S22: 254 | T22: 20 | U22: 24
B23: Расчет CRC8 | C23: =MyXor(C22,0) -> 100 | D23: =MyXor(D22,VLOOKUP(C23,'Таблица CRC'!$A$43:$C$298,3,FALSE)) -> 23 | E23: =MyXor(E22,VLOOKUP(D23,'Таблица CRC'!$A$43:$C$298,3,FALSE)) -> 30 | F23: =MyXor(F22,VLOOKUP(E23,'Таблица CRC'!$A$43:$C$298,3,FALSE)) -> 169 | G23: =MyXor(G22,VLOOKUP(F23,'Таблица CRC'!$A$43:$C$298,3,FALSE)) -> 34 | H23: =MyXor(H22,VLOOKUP(G23,'Таблица CRC'!$A$43:$C$298,3,FALSE)) -> 158 | I23: =MyXor(I22,VLOOKUP(H23,'Таблица CRC'!$A$43:$C$298,3,FALSE)) -> 15 | J23: =MyXor(J22,VLOOKUP(I23,'Таблица CRC'!$A$43:$C$298,3,FALSE)) -> 65 | K23: =MyXor(K22,VLOOKUP(J23,'Таблица CRC'!$A$43:$C$298,3,FALSE)) -> 9 | L23: =MyXor(L22,VLOOKUP(K23,'Таблица CRC'!$A$43:$C$298,3,FALSE)) -> 153 | M23: =MyXor(M22,VLOOKUP(L23,'Таблица CRC'!$A$43:$C$298,3,FALSE)) -> 98 | N23: =MyXor(N22,VLOOKUP(M23,'Таблица CRC'!$A$43:$C$298,3,FALSE)) -> 201 | O23: =MyXor(O22,VLOOKUP(N23,'Таблица CRC'!$A$43:$C$298,3,FALSE)) -> 70 | P23: =MyXor(P22,VLOOKUP(O23,'Таблица CRC'!$A$43:$C$298,3,FALSE)) -> 101 | Q23: =MyXor(Q22,VLOOKUP(P23,'Таблица CRC'!$A$43:$C$298,3,FALSE)) -> 164 | R23: =MyXor(R22,VLOOKUP(Q23,'Таблица CRC'!$A$43:$C$298,3,FALSE)) -> 48 | S23: =MyXor(S22,VLOOKUP(R23,'Таблица CRC'!$A$43:$C$298,3,FALSE)) -> 64 | T23: =MyXor(T22,VLOOKUP(S23,'Таблица CRC'!$A$43:$C$298,3,FALSE)) -> 82 | U23: =MyXor(U22,VLOOKUP(T23,'Таблица CRC'!$A$43:$C$298,3,FALSE)) -> 127 | V23: =MyXor(V22,VLOOKUP(U23,'Таблица CRC'!$A$43:$C$298,3,FALSE)) -> 185
B24: =CONCATENATE(C24," ",D24," ",E24," ",F24," ",G24," ",H24," ",I24," ",J24," ",K24," ",L24," ",M24," ",N24," ",O24," ",P24," ",Q24," ",R24," ",S24," ",T24," ",U24," ",V24) -> 64 13 00 2B 11 01 01 00 11 05 EF 10 10 FE FE FE FE 14 18 B9 | C24: =DEC2HEX(C22,2) -> 64 | D24: =DEC2HEX(D22,2) -> 13 | E24: 00 | F24: 2B | G24: 11 | H24: 01 | I24: 01 | J24: 00 | K24: =DEC2HEX(K22,2) -> 11 | L24: =DEC2HEX(L22,2) -> 05 | M24: EF | N24: 10 | O24: 10 | P24: FE | Q24: FE | R24: FE | S24: FE | T24: 14 | U24: 18 | V24: =DEC2HEX(V23,2) -> B9
A26: ПОРЯДОК чтения состояния С БКИ
A27: команда сброс
A28: команда опрос состояния | C28: 100 | D28: 6 | E28: 0 | F28: 1 | G28: 0 | H28: 248 | J28: нажата 3 кнопка | N28: ОТВЕТ ПРИБОРА
B29: Расчет CRC8 | C29: =MyXor(C28,0) -> 100 | D29: =MyXor(D28,VLOOKUP(C29,'Таблица CRC'!$A$43:$C$298,3,FALSE)) -> 2 | E29: =MyXor(E28,VLOOKUP(D29,'Таблица CRC'!$A$43:$C$298,3,FALSE)) -> 188 | F29: =MyXor(F28,VLOOKUP(E29,'Таблица CRC'!$A$43:$C$298,3,FALSE)) -> 144 | G29: =MyXor(G28,VLOOKUP(F29,'Таблица CRC'!$A$43:$C$298,3,FALSE)) -> 17 | H29: =MyXor(H28,VLOOKUP(G29,'Таблица CRC'!$A$43:$C$298,3,FALSE)) -> 59 | I29: =MyXor(I28,VLOOKUP(H29,'Таблица CRC'!$A$43:$C$298,3,FALSE)) -> 158 | N29: 100 | O29: 17 | P29: 14 | Q29: 15 | R29: 1 | S29: 3 | T29: 0 | U29: 0 | V29: 240 | W29: 17 | X29: 17 | Y29: 255 | Z29: 255 | AA29: 255 | AB29: 255 | AC29: 20 | AD29: 3 | AE29: 137
B30: =CONCATENATE(C30," ",D30," ",E30," ",F30," ",G30," ",H30," ",I30," ",J30," ",K30," ",L30," ",M30," ",N30) -> 64 06 00 01 00 F8 9E | C30: =DEC2HEX(C28,2) -> 64 | D30: =DEC2HEX(D28,2) -> 06 | E30: 00 | F30: 01 | G30: 00 | H30: F8 | I30: =DEC2HEX(I29,2) -> 9E | O30: номер нажатой кнопки в 6 и 17 байтах команды от БКИ
A32: команда данные считаны | C32: 100 | D32: 6 | E32: 0 | F32: 3 | G32: 0 | H32: 0 | K32: На эту команду нет ответа прибора
B33: Расчет CRC8 | C33: =MyXor(C32,0) -> 100 | D33: =MyXor(D32,VLOOKUP(C33,'Таблица CRC'!$A$43:$C$298,3,FALSE)) -> 2 | E33: =MyXor(E32,VLOOKUP(D33,'Таблица CRC'!$A$43:$C$298,3,FALSE)) -> 188 | F33: =MyXor(F32,VLOOKUP(E33,'Таблица CRC'!$A$43:$C$298,3,FALSE)) -> 146 | G33: =MyXor(G32,VLOOKUP(F33,'Таблица CRC'!$A$43:$C$298,3,FALSE)) -> 173 | H33: =MyXor(H32,VLOOKUP(G33,'Таблица CRC'!$A$43:$C$298,3,FALSE)) -> 82 | I33: =MyXor(I32,VLOOKUP(H33,'Таблица CRC'!$A$43:$C$298,3,FALSE)) -> 103
B34: =CONCATENATE(C34," ",D34," ",E34," ",F34," ",G34," ",H34," ",I34," ",J34," ",K34," ",L34," ",M34," ",N34) -> 64 06 00 03 00 00 67 | C34: =DEC2HEX(C32,2) -> 64 | D34: =DEC2HEX(D32,2) -> 06 | E34: 00 | F34: 03 | G34: 00 | H34: 00 | I34: =DEC2HEX(I33,2) -> 67
A36: команда опрос состояния | C36: 100 | D36: 6 | E36: 0 | F36: 1 | G36: 0 | H36: 248 | K36: ОТВЕТ ПРИБОРА
B37: Расчет CRC8 | C37: =MyXor(C36,0) -> 100 | D37: =MyXor(D36,VLOOKUP(C37,'Таблица CRC'!$A$43:$C$298,3,FALSE)) -> 2 | E37: =MyXor(E36,VLOOKUP(D37,'Таблица CRC'!$A$43:$C$298,3,FALSE)) -> 188 | F37: =MyXor(F36,VLOOKUP(E37,'Таблица CRC'!$A$43:$C$298,3,FALSE)) -> 144 | G37: =MyXor(G36,VLOOKUP(F37,'Таблица CRC'!$A$43:$C$298,3,FALSE)) -> 17 | H37: =MyXor(H36,VLOOKUP(G37,'Таблица CRC'!$A$43:$C$298,3,FALSE)) -> 59 | I37: =MyXor(I36,VLOOKUP(H37,'Таблица CRC'!$A$43:$C$298,3,FALSE)) -> 158 | K37: 64 09 0E 07 06 00 00 00 00 1A
B38: =CONCATENATE(C38," ",D38," ",E38," ",F38," ",G38," ",H38," ",I38," ",J38," ",N50," ",O50," ",P50," ",Q50) -> 64 06 00 01 00 F8 9E | C38: =DEC2HEX(C36,2) -> 64 | D38: =DEC2HEX(D36,2) -> 06 | E38: 00 | F38: 01 | G38: 00 | H38: F8 | I38: =DEC2HEX(I37,2) -> 9E
A40: команда опрос состояния | C40: 100 | D40: 6 | E40: 0 | F40: 1 | G40: 0 | H40: 248 | K40: ОТВЕТ ПРИБОРА | O40: При каждом последующем опросе прибавляется 1 к 4 байту
B41: Расчет CRC8 | C41: =MyXor(C40,0) -> 100 | D41: =MyXor(D40,VLOOKUP(C41,'Таблица CRC'!$A$43:$C$298,3,FALSE)) -> 2 | E41: =MyXor(E40,VLOOKUP(D41,'Таблица CRC'!$A$43:$C$298,3,FALSE)) -> 188 | F41: =MyXor(F40,VLOOKUP(E41,'Таблица CRC'!$A$43:$C$298,3,FALSE)) -> 144 | G41: =MyXor(G40,VLOOKUP(F41,'Таблица CRC'!$A$43:$C$298,3,FALSE)) -> 17 | H41: =MyXor(H40,VLOOKUP(G41,'Таблица CRC'!$A$43:$C$298,3,FALSE)) -> 59 | I41: =MyXor(I40,VLOOKUP(H41,'Таблица CRC'!$A$43:$C$298,3,FALSE)) -> 158 | K41: 64 05 02 17 00 42
B42: =CONCATENATE(C42," ",D42," ",E42," ",F42," ",G42," ",H42," ",I42," ",J42," ",N54," ",O54," ",P54," ",Q54) -> 64 06 00 01 00 F8 9E | C42: =DEC2HEX(C40,2) -> 64 | D42: =DEC2HEX(D40,2) -> 06 | E42: 00 | F42: 01 | G42: 00 | H42: F8 | I42: =DEC2HEX(I41,2) -> 9E
A46: Дополнитнльные широковещательные команды 9-й байт | B46: 0 | C46: норма
B47: 2 | C47: неисправность
B48: 3 | C48: тревога
